bitfinex/quotes_BTCUSD_20240718
["timestamp","ask_amount","ask_price","bid_price","bid_amount"]
[1721294830243,0.00935,64989.0,64988.0,3.07326064]
[1721294831244,0.00935,64989.0,64988.0,2.49028209]
[1721294831420,0.00935,64989.0,64988.0,3.07355042]
[1721294834050,0.07475,64989.0,64988.0,2.90914604]
[1721294834250,0.15255,64989.0,64988.0,2.62094663]
[1721294834533,0.15255,64989.0,64988.0,2.13935235]
[1721294834711,0.15255,64989.0,64988.0,2.09356653]
[1721294835954,0.15255,64989.0,64988.0,2.09356535]
[1721294837229,0.15255,64989.0,64988.0,1.93936019]
[1721294837399,0.15255,64989.0,64988.0,1.12886219]
[1721294837611,0.15255,64989.0,64988.0,1.08307691]
[1721294838981,0.15255,64989.0,64988.0,1.10607691]
[1721294839457,0.15255,64989.0,64988.0,1.07830999]
[1721294842472,0.15255,64989.0,64988.0,0.05455625]
[1721294842896,0.15255,64989.0,64988.0,0.51617925]
[1721294843319,0.15255,64989.0,64988.0,0.82392825]
[1721294844079,0.15155,64989.0,64988.0,0.81092825]
[1721294844616,0.15155,64989.0,64988.0,0.81392825]
[1721294845041,0.15855,64989.0,64988.0,0.81492825]
[1721294845621,0.15855,64989.0,64988.0,0.50717925]
[1721294851803,0.15855,64989.0,64988.0,0.19943025]
[1721294852110,0.15855,64989.0,64988.0,0.50717925]
[1721294852785,0.15855,64989.0,64988.0,0.19943025]
[1721294854750,0.620166,64989.0,64988.0,0.03753187]
[1721294855278,0.620166,64989.0,64988.0,0.029]
[1721294855524,0.92791,64989.0,64988.0,0.006]
[1721294855764,0.92791,64989.0,64988.0,0.005]
[1721294855765,1.228654,64989.0,64988.0,0.005]
[1721294856206,1.235654,64989.0,64988.0,0.006]
[1721294856436,1.3665544,64989.0,64988.0,0.006]
[1721294857175,1.3665544,64989.0,64988.0,0.001]
[1721294857413,0.76942,64984.0,64983.0,0.000913]
[1721294857626,0.91032,64984.0,64983.0,0.000913]
[1721294857763,0.91032,64984.0,64983.0,0.00912939]
[1721294857996,0.91032,64984.0,64983.0,0.023913]
[1721294858905,0.92432,64984.0,64983.0,0.024913]
[1721294860138,0.93232,64984.0,64983.0,0.025913]
[1721294861177,0.93232,64984.0,64983.0,0.03413408]
[1721294863779,0.93232,64984.0,64983.0,0.025913]
[1721294868040,0.93232,64984.0,64983.0,0.03393738]
[1721294869947,0.93232,64984.0,64983.0,0.04217416]
[1721294870741,0.93232,64984.0,64983.0,0.03414978]
[1721294871203,0.93232,64984.0,64983.0,0.025913]
[1721294871848,0.93232,64984.0,64983.0,0.03393738]
[1721294872050,0.93232,64984.0,64983.0,0.025913]
[1721294872257,0.93315,64984.0,64983.0,0.025913]
[1721294873738,1.373043,64984.0,64983.0,0.025913]
[1721294874035,1.445043,64984.0,64983.0,0.002913]
[1721294880518,1.373043,64984.0,64983.0,0.002913]
[1721294880718,1.445043,64984.0,64983.0,0.002913]
[1721294881362,1.49604828,64984.0,64983.0,0.002913]
[1721294883788,1.445043,64984.0,64983.0,0.002913]
[1721294883981,1.4961793,64984.0,64983.0,0.002913]
[1721294884421,1.4241793,64984.0,64983.0,0.002913]
[1721294884657,1.4961793,64984.0,64983.0,0.002913]
[1721294885992,1.49886009,64984.0,64983.0,0.002913]
[1721294886528,1.4961793,64984.0,64983.0,0.002913]
[1721294887166,1.49613765,64984.0,64983.0,0.002913]
[1721294887368,1.52021594,64984.0,64983.0,0.002913]
[1721294888314,1.38809094,64984.0,64983.0,0.002913]
[1721294889765,1.54247268,64984.0,64983.0,0.002913]
[1721294889972,1.8922163,64984.0,64983.0,0.002913]
[1721294890330,1.85023565,64984.0,64983.0,0.002913]
[1721294893425,0.95722829,64984.0,64983.0,0.002913]
[1721294893637,0.86830619,64984.0,64983.0,0.01093738]
[1721294894252,0.86830619,64984.0,64983.0,0.03393738]
[1721294894253,0.09888619,64984.0,64983.0,0.03393738]
[1721294894460,0.02283,64984.0,64983.0,0.03393738]
[1721294894835,0.02283,64984.0,64983.0,0.04218271]
[1721294898153,0.02283,64984.0,64983.0,0.19606871]
[1721294899611,0.02283,64984.0,64983.0,1.48586645]
[1721294899813,0.02283,64984.0,64983.0,1.58586645]
[1721294900012,0.02283,64984.0,64983.0,2.07142327]
[1721294900230,0.02283,64984.0,64983.0,2.11730141]
[1721294900470,0.02283,64984.0,64983.0,2.06730141]
[1721294900654,0.00083,64984.0,64983.0,2.06530141]
[1721294901057,0.00483,64984.0,64983.0,2.11530141]
[1721294901421,0.00483,64984.0,64983.0,2.01942327]
[1721294902010,0.00583,64984.0,64983.0,2.02642327]
[1721294902209,0.00583,64984.0,64983.0,2.13462327]
[1721294902825,0.00583,64984.0,64983.0,2.13460635]
[1721294903450,0.00583,64984.0,64983.0,1.51886645]
[1721294907475,0.00583,64984.0,64983.0,1.82663845]
[1721294909521,0.00583,64984.0,64983.0,2.00683845]
[1721294911961,0.00583,64984.0,64983.0,2.13460678]
[1721294912118,0.00583,64984.0,64983.0,2.13460549]
[1721294914431,0.00583,64984.0,64983.0,2.49237749]
[1721294914624,0.00583,64984.0,64983.0,2.52319749]
[1721294915208,0.00583,64984.0,64983.0,2.52318156]
[1721294915462,0.00583,64984.0,64983.0,2.52318006]
[1721294915699,0.00083,64984.0,64983.0,2.51618006]
[1721294916143,0.00183,64984.0,64983.0,2.54418006]
[1721294918474,0.00183,64984.0,64983.0,2.54418443]
[1721294919121,0.00183,64984.0,64983.0,2.49418443]
[1721294920299,0.00183,64984.0,64983.0,2.54418443]
[1721294921537,0.00183,64984.0,64983.0,2.54418519]
[1721294924377,0.00183,64984.0,64983.0,2.43608519]
[1721294924893,0.00835,64989.0,64988.0,1.50251438]
[1721294925192,0.00835,64989.0,64988.0,2.04105086]
[1721294925394,0.00835,64989.0,64988.0,2.04924147]
[1721294926014,0.00835,64989.0,64988.0,2.40699047]
[1721294926171,0.00935,64989.0,64988.0,2.41899047]
[1721294927779,0.00935,64989.0,64988.0,2.43299047]
[1721294927971,0.00935,64989.0,64988.0,1.83222147]
[1721294928212,0.00935,64989.0,64988.0,1.50147247]
[1721294928426,0.00935,64989.0,64988.0,1.57357247]
[1721294928624,0.00935,64989.0,64988.0,1.44581773]
[1721294929111,0.00835,64989.0,64988.0,1.43381773]
[1721294929316,0.00835,64989.0,64988.0,1.56159027]
[1721294929513,0.09255,64989.0,64988.0,1.46159027]
[1721294929759,0.09155,64989.0,64988.0,1.46159027]
[1721294930254,0.09555,64989.0,64988.0,1.46159027]
[1721294930474,0.09555,64989.0,64988.0,1.39849027]
[1721294930678,0.09555,64989.0,64988.0,1.40749027]
[1721294930879,0.09555,64989.0,64988.0,1.40749116]
[1721294931086,0.01235,64989.0,64988.0,1.40749116]
[1721294931224,0.01235,64989.0,64988.0,1.39849116]
[1721294931427,0.01235,64989.0,64988.0,1.47719116]
[1721294931605,0.01235,64989.0,64988.0,1.48319116]
[1721294931806,0.01235,64989.0,64988.0,1.48318542]
[1721294932010,0.01235,64989.0,64988.0,1.40448542]
[1721294934056,0.01235,64989.0,64988.0,1.40448442]
[1721294940426,0.01235,64989.0,64988.0,1.40448449]
[1721294942721,0.01235,64989.0,64988.0,1.4044846]
[1721294947668,0.07285,64989.0,64988.0,1.4044846]
[1721294948969,0.07285,64989.0,64988.0,1.27671773]
[1721294949192,0.07285,64989.0,64988.0,1.40448878]
[1721294950317,0.07285,64989.0,64988.0,1.27671773]
[1721294952290,0.01235,64989.0,64988.0,1.27671773]
[1721294952427,0.01235,64989.0,64988.0,1.34881773]
[1721294952633,0.01235,64989.0,64988.0,1.47659292]
[1721294955461,0.01235,64989.0,64988.0,1.47659282]
[1721294956400,0.01235,64989.0,64988.0,1.34881773]
[1721294956633,0.01235,64989.0,64988.0,1.47659282]
[1721294958684,0.01235,64989.0,64988.0,1.34881773]
[1721294958890,0.01235,64989.0,64988.0,1.47659302]
[1721294961649,0.01235,64989.0,64988.0,1.27671773]
[1721294961877,0.01235,64989.0,64988.0,1.47659301]
[1721294962701,0.01235,64989.0,64988.0,1.16884401]
[1721294963886,0.15545,64989.0,64988.0,0.17299027]
[1721294964083,0.309322,64989.0,64988.0,0.03719061]
[1721294964575,0.617066,64989.0,64988.0,0.03719061]
[1721294965333,0.617066,64989.0,64988.0,0.029]
[1721294965646,0.617066,64989.0,64988.0,0.03751676]
[1721294965850,0.617066,64989.0,64988.0,0.029]
[1721294966480,0.617066,64989.0,64988.0,0.03751676]
[1721294968009,0.92481,64989.0,64988.0,0.03751676]
[1721294968210,1.00752778,64989.0,64988.0,0.029]
[1721294969199,0.92481,64989.0,64988.0,0.029]
[1721294981514,1.232554,64989.0,64988.0,0.029]
[1721294985473,1.232104,64989.0,64988.0,0.029]
[1721294990981,1.28229458,64989.0,64988.0,0.029]
[1721294991615,1.20059135,64989.0,64988.0,0.029]
[1721294991744,1.150204,64989.0,64988.0,0.029]
[1721294992535,0.84246,64989.0,64988.0,0.029]
[1721294992849,0.84246,64989.0,64988.0,0.03702438]
[1721294993251,0.89267305,64989.0,64988.0,0.03702438]
[1721294993662,0.94288601,64989.0,64988.0,0.03702438]
[1721294994087,0.94288601,64989.0,64988.0,0.029]
[1721294994890,0.94288601,64989.0,64988.0,0.03702438]
[1721294995714,0.94288601,64989.0,64988.0,0.029]
[1721294996551,0.9428636,64989.0,64988.0,0.029]
[1721294998434,0.9669389,64989.0,64988.0,0.029]
[1721294999583,1.09396815,64989.0,64988.0,0.029]
[1721294999789,1.3515216,64989.0,64988.0,0.006]
[1721294999999,1.3515216,64989.0,64988.0,0.029]
[1721295000000,1.81353127,64989.0,64988.0,0.029]
[1721295000410,1.81353127,64989.0,64988.0,0.029913]
[1721295001810,1.50578727,64989.0,64988.0,0.029913]
[1721295002011,1.50585909,64989.0,64988.0,0.029913]
[1721295002234,1.37882984,64989.0,64988.0,0.029913]
[1721295002456,0.91668584,64989.0,64988.0,0.029913]
[1721295003644,1.22442984,64989.0,64988.0,0.029913]
[1721295005100,1.1742793,64989.0,64988.0,0.029913]
[1721295005259,1.22416792,64989.0,64988.0,0.029913]
[1721295005910,1.30066792,64989.0,64988.0,0.029913]
[1721295006467,1.45501749,64989.0,64988.0,0.029913]
[1721295007273,1.30066792,64989.0,64988.0,0.029913]
[1721295008404,1.30068068,64989.0,64988.0,0.029913]
[1721295008718,1.3006806,64989.0,64988.0,0.029913]
[1721295009321,1.36996079,64989.0,64988.0,0.029913]
[1721295011448,1.2507793,64989.0,64988.0,0.029913]
[1721295011656,1.37008314,64989.0,64988.0,0.029913]
[1721295014451,0.98583914,64989.0,64988.0,0.029913]
[1721295014651,0.15527914,64989.0,64988.0,0.49118638]
[1721295014856,0.0119,64989.0,64988.0,1.02490938]
[1721295014998,0.0119,64989.0,64988.0,1.48704012]
[1721295015200,0.0119,64989.0,64988.0,1.6148208]
[1721295015403,0.0119,64989.0,64988.0,1.61481591]
[1721295016435,0.0079,64989.0,64988.0,1.48704012]
[1721295016632,0.0079,64989.0,64988.0,1.6148142]
[1721295016875,0.0079,64989.0,64988.0,1.6118142]
[1721295017075,0.0079,64989.0,64988.0,1.6178142]
[1721295017452,0.0079,64989.0,64988.0,1.49004012]
[1721295017726,0.0079,64989.0,64988.0,1.49245928]
[1721295017907,0.0079,64989.0,64988.0,0.35473054]
[1721295018248,0.0079,64989.0,64988.0,0.05235654]
[1721295018446,0.0079,64989.0,64988.0,0.19423054]
[1721295018852,0.0079,64989.0,64988.0,0.03233216]
[1721295019475,0.0079,64989.0,64988.0,0.04133216]
[1721295019651,0.0079,64989.0,64988.0,0.20323054]
[1721295020067,0.0079,64989.0,64988.0,0.19520616]
[1721295020735,0.0079,64989.0,64988.0,0.18620616]
[1721295021091,0.0079,64989.0,64988.0,0.19620616]
[1721295021920,0.0079,64989.0,64988.0,0.04233216]
[1721295022529,0.0079,64989.0,64988.0,0.19620616]
[1721295022947,0.0079,64989.0,64988.0,0.20423054]
[1721295024537,0.0079,64989.0,64988.0,0.51197954]
[1721295029917,0.7942713,64989.0,64988.0,0.01933216]
[1721295030171,1.43533498,64989.0,64988.0,0.01933216]
[1721295030383,1.41086254,64989.0,64988.0,0.010913]
[1721295030870,1.43532304,64989.0,64988.0,0.000913]
[1721295031115,1.43532304,64989.0,64988.0,0.001913]
[1721295031116,1.39378574,64989.0,64988.0,0.001913]
[1721295031337,1.44243184,64989.0,64988.0,0.003913]
[1721295031587,1.40478574,64989.0,64988.0,0.004913]
[1721295031816,1.40478574,64989.0,64988.0,0.001913]
[1721295032880,0.634916,64989.0,64988.0,0.001913]
[1721295033174,0.554616,64989.0,64988.0,0.001913]
[1721295033570,0.554616,64989.0,64988.0,0.03297487]
[1721295033718,0.554616,64989.0,64988.0,0.04099925]
[1721295033921,0.554616,64989.0,64988.0,0.03297487]
[1721295034124,0.554616,64989.0,64988.0,0.04099925]
[1721295034486,0.554616,64989.0,64988.0,0.03297487]
[1721295036656,0.554616,64989.0,64988.0,0.04099925]
[1721295036846,0.554616,64989.0,64988.0,0.03297487]
[1721295037478,0.554616,64989.0,64988.0,0.024913]
[1721295037681,0.554616,64989.0,64988.0,0.03297487]
[1721295040419,0.554616,64989.0,64988.0,0.024913]
[1721295040590,0.86236,64989.0,64988.0,0.001913]
[1721295040987,0.93393492,64989.0,64988.0,0.001913]
[1721295043271,0.86236,64989.0,64988.0,0.001913]
[1721295043620,0.554616,64989.0,64988.0,0.001913]
[1721295043827,0.554616,64989.0,64988.0,0.00998416]
[1721295044074,0.554616,64989.0,64988.0,0.03298416]
[1721295050570,0.624516,64989.0,64988.0,0.03298416]
[1721295051272,1.0648224,64989.0,64988.0,0.024913]
[1721295051452,1.0648224,64989.0,64988.0,0.001913]
[1721295052863,1.114134,64989.0,64988.0,0.001913]
[1721295053269,1.13820963,64989.0,64988.0,0.001913]
[1721295055787,1.13832406,64989.0,64988.0,0.001913]
[1721295058610,1.6818498,64989.0,64988.0,0.001913]
[1721295059557,1.7741182,64989.0,64988.0,0.001913]
[1721295060154,1.6818498,64989.0,64988.0,0.001913]
[1721295061348,1.6818174,64989.0,64988.0,0.001913]
[1721295064350,1.68187606,64989.0,64988.0,0.001913]
[1721295064565,1.68158393,64989.0,64988.0,0.001913]
[1721295065922,2.50124755,64989.0,64988.0,0.001913]
[1721295066133,2.60124755,64989.0,64988.0,0.001913]
[1721295066484,2.82404636,64989.0,64988.0,0.001913]
[1721295066959,2.82304636,64989.0,64988.0,0.001913]
[1721295067170,2.80604636,64989.0,64988.0,0.001913]
[1721295067371,2.66776852,64989.0,64988.0,0.001913]
[1721295067566,2.68176852,64989.0,64988.0,0.001913]
[1721295068239,2.59737442,64989.0,64988.0,0.001913]
[1721295073752,2.597328,64989.0,64988.0,0.001913]
[1721295076791,2.85583139,64989.0,64988.0,0.001913]
[1721295077018,2.54357162,64985.0,64984.0,0.000913]
[1721295077222,2.89192899,64985.0,64984.0,0.000913]
[1721295077362,3.02563899,64985.0,64984.0,0.000913]
[1721295077566,2.89192899,64985.0,64984.0,0.000913]
[1721295077777,3.02564476,64985.0,64984.0,0.000913]
[1721295077982,3.17999433,64985.0,64984.0,0.000913]
[1721295078218,2.20466762,64984.0,64983.0,0.000913]
[1721295078382,2.76384076,64984.0,64983.0,1e-06]
[1721295078808,0.04197562,64973.0,64969.0,0.04977718]
[1721295078999,2.03402468,64973.0,64969.0,0.04977718]
[1721295079251,2.13402468,64973.0,64967.0,0.000913]
[1721295080008,2.13252756,64973.0,64967.0,0.000913]
[1721295080373,2.13252756,64973.0,64972.0,0.001913]
[1721295080374,2.25864523,64973.0,64972.0,0.001913]
[1721295080492,2.4129948,64973.0,64972.0,0.001913]
[1721295081259,2.31187713,64973.0,64972.0,0.001913]
[1721295081482,2.6194561,64973.0,64972.0,0.001913]
[1721295081637,2.70222633,64973.0,64972.0,0.001913]
[1721295082082,2.84041681,64973.0,64972.0,0.001913]
[1721295082282,2.70222633,64973.0,64972.0,0.001913]
[1721295083041,2.70280084,64973.0,64972.0,0.001913]
[1721295083466,2.70280084,64973.0,64967.0,0.000913]
[1721295083467,2.39731162,64968.0,64967.0,0.000913]
[1721295083668,3.01628361,64968.0,64967.0,0.000913]
[1721295083894,2.93322853,64968.0,64967.0,0.000913]
[1721295084697,1.89733962,64967.0,64966.0,0.000913]
[1721295084897,2.48291258,64967.0,64966.0,0.000913]
[1721295085099,2.74820835,64967.0,64966.0,0.000913]
[1721295085305,2.6726525,64967.0,64966.0,0.000913]
[1721295085967,2.04187562,64958.0,64957.0,0.025]
[1721295086170,2.33619395,64958.0,64957.0,0.025]
[1721295086299,2.56646789,64958.0,64957.0,0.025]
[1721295086497,2.59056105,64958.0,64957.0,0.025]
[1721295087271,2.56646789,64958.0,64957.0,0.025]
[1721295087451,2.57846789,64958.0,64957.0,0.025]
[1721295087956,2.59246789,64958.0,64957.0,0.025]
[1721295088523,2.60914834,64958.0,64957.0,0.025]
[1721295088744,2.59714834,64958.0,64957.0,0.025]
[1721295088946,2.59714834,64958.0,64957.0,0.026]
[1721295089271,2.61014834,64958.0,64957.0,0.026]
[1721295092306,2.61022468,64958.0,64957.0,0.026]
[1721295092712,2.61022467,64958.0,64957.0,0.026]
[1721295095024,2.02580848,64958.0,64957.0,0.026]
[1721295095225,1.91567119,64958.0,64957.0,0.026]
[1721295095410,0.81340745,64958.0,64957.0,0.1874]
[1721295095814,0.81340745,64958.0,64957.0,0.19542438]
[1721295096042,0.810727,64958.0,64957.0,0.20382186]
[1721295096242,0.810727,64958.0,64957.0,0.19542438]
[1721295096491,0.91203167,64958.0,64957.0,0.1874]
[1721295096838,0.60414067,64958.0,64957.0,0.1874]
[1721295097031,0.60414067,64958.0,64957.0,0.19542438]
[1721295097221,0.59114067,64958.0,64957.0,0.1864]
[1721295097431,0.89903167,64958.0,64957.0,0.1864]
[1721295097666,0.87103167,64958.0,64957.0,0.19479748]
[1721295097871,0.87103167,64958.0,64957.0,0.1864]
[1721295098044,0.783727,64958.0,64957.0,0.19442438]
[1721295098278,0.783727,64958.0,64957.0,0.1864]
[1721295098484,0.783727,64958.0,64957.0,0.19442438]
[1721295098693,0.797727,64958.0,64957.0,0.19442438]
[1721295098898,0.809727,64958.0,64957.0,0.19542438]
[1721295099246,0.809727,64958.0,64957.0,0.19634838]
[1721295099575,0.489836,64958.0,64957.0,0.19534838]
[1721295099778,0.500836,64958.0,64957.0,0.19634838]
[1721295100129,0.808727,64958.0,64957.0,0.20474586]
[1721295100773,0.808727,64958.0,64957.0,0.19672148]
[1721295101100,0.808727,64958.0,64957.0,0.20474586]
[1721295101307,0.9203864,64958.0,64957.0,0.19672148]
[1721295101458,0.9203864,64958.0,64957.0,0.188324]
[1721295102745,1.38265914,64958.0,64957.0,0.102524]
[1721295102948,1.38265914,64958.0,64957.0,0.026924]
[1721295103150,1.69055014,64958.0,64957.0,0.026924]
[1721295105516,1.57889074,64958.0,64957.0,0.026924]
[1721295105716,1.27099974,64958.0,64957.0,0.026924]
[1721295107398,1.31794675,64958.0,64957.0,0.026924]
[1721295107799,1.27099974,64958.0,64957.0,0.026924]
[1721295109752,1.31765762,64958.0,64957.0,0.026924]
[1721295110193,1.45362094,64958.0,64957.0,0.026924]
[1721295111233,1.45347178,64958.0,64957.0,0.026924]
[1721295112163,1.31750846,64958.0,64957.0,0.026924]
[1721295112601,1.35948408,64958.0,64957.0,0.026924]
[1721295112742,1.34159793,64958.0,64957.0,0.026924]
[1721295115659,2.30425555,64958.0,64957.0,0.026924]
[1721295116121,2.40425555,64958.0,64957.0,0.026924]
[1721295116287,2.55860512,64958.0,64957.0,0.026924]
[1721295117205,2.5120964,64958.0,64957.0,0.026924]
[1721295117425,2.55788051,64958.0,64957.0,0.026924]
[1721295118350,2.62788051,64958.0,64957.0,0.026924]
[1721295118559,2.63056015,64958.0,64957.0,0.026924]
[1721295120289,2.69954301,64958.0,64957.0,0.026924]
[1721295120491,2.69974874,64958.0,64957.0,0.026924]
[1721295121272,2.6306249,64958.0,64957.0,0.026924]
[1721295121476,2.72279002,64958.0,64957.0,0.026924]
[1721295122365,2.7458313,64958.0,64957.0,0.026924]
[1721295122756,2.63030428,64958.0,64957.0,0.026924]
[1721295123009,2.63030629,64958.0,64957.0,0.026924]
[1721295124113,2.71126986,64958.0,64957.0,0.001924]
[1721295125401,2.59069424,64958.0,64957.0,0.001924]
[1721295125823,2.50973067,64958.0,64957.0,0.001924]
[1721295126032,2.51005116,64958.0,64957.0,0.001924]
[1721295126407,2.55202678,64958.0,64957.0,0.001924]
[1721295126601,2.24413578,64958.0,64957.0,0.001924]
[1721295128961,2.24355102,64958.0,64957.0,0.001924]
[1721295130471,2.2015754,64958.0,64957.0,0.001924]
[1721295130685,2.24355102,64958.0,64957.0,0.001924]
[1721295131380,2.63193505,64958.0,64957.0,0.001924]
[1721295132355,2.63198248,64958.0,64957.0,0.001924]
[1721295132608,2.70758248,64958.0,64957.0,0.001924]
[1721295135054,2.12776629,64958.0,64957.0,0.001924]
[1721295135282,2.00195985,64958.0,64957.0,0.001924]
[1721295135509,2.0466692,64958.0,64957.0,0.001924]
[1721295135952,2.08864482,64958.0,64957.0,0.001924]
[1721295137129,2.04393547,64958.0,64957.0,0.001924]
[1721295137366,2.08962549,64958.0,64957.0,0.001924]
[1721295138204,2.24397506,64958.0,64957.0,0.001924]
[1721295138610,2.24399543,64958.0,64957.0,0.001924]
[1721295138832,2.24131579,64958.0,64957.0,0.001924]
[1721295141220,2.32232363,64958.0,64957.0,0.001924]
[1721295141623,2.1956054,64958.0,64957.0,0.001924]
[1721295141975,2.32504344,64958.0,64957.0,0.001924]
[1721295142533,2.28306782,64958.0,64957.0,0.001924]
[1721295143841,2.21896782,64958.0,64957.0,0.001924]
[1721295144435,1.84368167,64958.0,64957.0,0.149124]
[1721295144640,1.53579067,64958.0,64957.0,0.149124]
[1721295144849,1.39776923,64958.0,64957.0,0.149124]
[1721295145059,1.44328191,64958.0,64957.0,0.149124]
[1721295145279,0.11128217,64958.0,64957.0,0.18014838]
[1721295145491,0.50351602,64958.0,64957.0,0.18014838]
[1721295145697,0.81140702,64958.0,64957.0,0.18874009]
[1721295145906,0.50351602,64958.0,64957.0,0.18014838]
[1721295146120,0.500836,64958.0,64957.0,0.18874009]
[1721295146572,0.461836,64958.0,64957.0,0.18774009]
[1721295146774,0.461836,64958.0,64957.0,0.18874009]
[1721295146975,1.40097094,64958.0,64957.0,0.15771571]
[1721295147181,1.47007228,64958.0,64957.0,0.09181571]
[1721295147389,1.93216328,64958.0,64957.0,0.000924]
[1721295147586,2.07681777,64958.0,64957.0,0.000924]
[1721295147823,2.07681777,64958.0,64957.0,0.001924]
[1721295147824,2.14746164,64958.0,64957.0,0.001924]
[1721295148219,2.14746164,64958.0,64957.0,0.000924]
[1721295148220,2.22194617,64958.0,64957.0,0.000924]
[1721295148642,2.21594617,64958.0,64957.0,0.001924]
[1721295148845,2.14946164,64958.0,64957.0,0.001924]
[1721295149293,2.13546164,64958.0,64957.0,0.001924]
[1721295149526,2.14946164,64958.0,64957.0,0.001924]
[1721295150014,2.14146164,64958.0,64957.0,0.000924]
[1721295150386,2.15446164,64958.0,64957.0,0.000924]
[1721295150773,2.11248602,64958.0,64957.0,0.000924]
[1721295150969,2.11347305,64958.0,64957.0,0.000924]
[1721295151394,2.11347336,64958.0,64957.0,0.000924]
[1721295152009,2.04897336,64958.0,64957.0,0.000924]
[1721295152262,1.50191116,64958.0,64957.0,0.144724]
[1721295152678,1.61731906,64958.0,64957.0,0.144724]
[1721295152847,1.59423473,64958.0,64957.0,0.144724]
[1721295153103,1.50191116,64958.0,64957.0,0.144724]
[1721295153304,1.65626073,64958.0,64957.0,0.144724]
[1721295153513,1.65550019,64958.0,64957.0,0.144724]
[1721295153718,0.56174742,64958.0,64957.0,0.144724]
[1721295153938,0.49151487,64958.0,64957.0,0.167724]
[1721295155337,0.18362387,64958.0,64957.0,0.17574838]
[1721295155711,0.18362387,64958.0,64957.0,0.18450993]
[1721295156537,0.26356216,64958.0,64957.0,0.18450993]
[1721295156759,0.57145316,64958.0,64957.0,0.18450993]
[1721295156962,0.87934416,64958.0,64957.0,0.17648555]
[1721295157169,0.87934416,64958.0,64957.0,0.00968555]
[1721295157170,1.3416169,64958.0,64957.0,0.00968555]
[1721295157369,1.48062147,64958.0,64957.0,0.00968555]
[1721295157601,1.48062147,64958.0,64957.0,0.000924]
[1721295158032,1.71929411,64958.0,64957.0,0.000924]
[1721295158243,1.76126973,64958.0,64957.0,0.000924]
[1721295158435,2.05173366,64958.0,64957.0,0.000924]
[1721295158975,2.03636973,64958.0,64957.0,0.000924]
[1721295159643,1.99439411,64958.0,64957.0,0.000924]
[1721295160328,1.99464205,64958.0,64957.0,0.000924]
[1721295160962,2.11002737,64958.0,64957.0,0.000924]
[1721295161150,2.19881767,64958.0,64957.0,0.000924]
[1721295161982,2.15684205,64958.0,64957.0,0.000924]
[1721295163369,2.1569162,64958.0,64957.0,0.000924]
[1721295166147,1.9818162,64958.0,64957.0,0.000924]
[1721295166389,2.01726853,64958.0,64957.0,0.082024]
[1721295166623,2.01756011,64958.0,64957.0,0.082024]
[1721295167297,1.90216949,64958.0,64957.0,0.000924]
[1721295167523,2.00971312,64958.0,64957.0,0.000924]
[1721295168025,2.00703425,64958.0,64957.0,0.000924]
[1721295168241,1.89164019,64958.0,64957.0,0.000924]
[1721295168456,2.16923282,64958.0,64957.0,0.000924]
[1721295168865,2.05384019,64958.0,64957.0,0.000924]
[1721295169684,2.05394257,64958.0,64957.0,0.000924]
[1721295170091,2.16933726,64958.0,64957.0,0.000924]
[1721295171455,2.05394257,64958.0,64957.0,0.000924]
[1721295172970,2.05407155,64958.0,64957.0,0.000924]
[1721295176043,2.0540915,64958.0,64957.0,0.000924]
[1721295178438,2.05394908,64958.0,64957.0,0.000924]
[1721295178857,1.42950851,64958.0,64957.0,0.000924]
[1721295179228,1.54492241,64958.0,64957.0,0.000924]
[1721295180333,1.61492241,64958.0,64957.0,0.000924]
[1721295180543,1.61492241,64958.0,64957.0,0.081624]
[1721295180544,1.54492241,64958.0,64957.0,0.081624]
[1721295180748,1.69927198,64958.0,64957.0,0.081624]
[1721295181567,1.65286187,64958.0,64957.0,0.081624]
[1721295181912,1.69931409,64958.0,64957.0,0.081624]
[1721295182954,0.09754078,64958.0,64957.0,0.17694838]
[1721295183166,0.16679178,64958.0,64957.0,0.17694838]
[1721295183394,0.55937678,64958.0,64957.0,0.1776866]
[1721295183591,0.86726778,64958.0,64957.0,0.1776866]
[1721295183800,1.01948334,64958.0,64957.0,0.168924]
[1721295184189,1.08873467,64958.0,64957.0,0.168924]
[1721295184365,1.11182015,64958.0,64957.0,0.168924]
[1721295184619,1.08840466,64958.0,64957.0,0.168924]
[1721295184826,1.11148833,64958.0,64957.0,0.168924]
[1721295184990,1.08840431,64958.0,64957.0,0.168924]
[1721295185412,1.01915363,64958.0,64957.0,0.168924]
[1721295185645,1.11148833,64958.0,64957.0,0.168924]
[1721295186176,1.08840525,64958.0,64957.0,0.168924]
[1721295186370,1.01915363,64958.0,64957.0,0.168924]
[1721295187631,0.97303112,64958.0,64957.0,0.168924]
[1721295187849,1.01881576,64958.0,64957.0,0.168924]
[1721295189640,1.08806493,64958.0,64957.0,0.168924]
[1721295190776,0.97303112,64958.0,64957.0,0.168924]
[1721295190994,1.08824468,64958.0,64957.0,0.168924]
[1721295191197,1.01899392,64958.0,64957.0,0.168924]
[1721295191417,1.24262642,64958.0,64957.0,0.104624]
[1721295191639,1.57360101,64958.0,64957.0,0.000924]
[1721295191836,1.54146666,64958.0,64957.0,0.000924]
[1721295192471,1.63382211,64958.0,64957.0,0.000924]
[1721295192729,2.10391311,64958.0,64957.0,0.000924]
[1721295192934,2.01155766,64958.0,64957.0,0.000924]
[1721295193854,1.96559486,64958.0,64957.0,0.000924]
[1721295194125,2.01131153,64958.0,64957.0,0.000924]
[1721295195228,2.08131153,64958.0,64957.0,0.000924]
[1721295195607,2.22328715,64958.0,64957.0,0.000924]
[1721295196552,2.30318715,64958.0,64957.0,0.000924]
[1721295196847,2.6920905,64958.0,64957.0,0.000924]
[1721295197466,2.64640427,64958.0,64957.0,0.000924]
[1721295197693,2.67915238,64958.0,64957.0,0.000924]
[1721295197895,2.69315238,64958.0,64957.0,0.000924]
[1721295198424,2.62315238,64958.0,64957.0,0.000924]
[1721295198626,2.69315238,64958.0,64957.0,0.000924]
[1721295199212,2.67915238,64958.0,64957.0,0.000924]
[1721295199418,2.69315238,64958.0,64957.0,0.000924]
[1721295200354,2.69249924,64958.0,64957.0,0.000924]
[1721295200563,2.67850219,64958.0,64957.0,0.000924]
[1721295200771,2.69250219,64958.0,64957.0,0.000924]
[1721295202000,2.67850219,64958.0,64957.0,0.000924]